Cogmind - Beta 10.1 @@@ ROGUE MODE // 2020.10.24 @ 07:58:04 Player: Demise Result: Destroyed by G-47 Trooper with Particle Gun Performance ------------- Evolutions (3) 1500 Regions Visited (11) 2200 Robots Destroyed (167) 835 Value Destroyed (6097) 6097 Prototype IDs (6) 120 Alien Tech Used (0) 0 Bonus (-4143) -4143 TOTAL SCORE: 6609 Bonus ------- High Alert Combat Kills 525 Follower Combat Kills 535 Entered Garrisons 200 Friendly Fire -5403 Cogmind --------- Core Integrity 0/700 Matter 104/300 Energy 94/100 System Corruption 5% Temperature Cool (11) Movement Treading (185) Ox2 Location -7/Lower Caves Parts ------- > --- POWER (1) -------- (None) > --- PROPULSION (2) --- Advanced Treads Advanced Treads > --- UTILITY (8) ------ Improved Cooling System High-capacity Storage Unit High-capacity Storage Unit High-capacity Storage Unit High-capacity Storage Unit Transmission Jammer Hacking Suite System Shield > --- WEAPON (2) ------- (None) > --- INVENTORY (36) --- Advanced Treads Advanced Treads Advanced Treads Large Storage Unit High-capacity Storage Unit High-capacity Storage Unit Compact Battery (300) Faulty Experimental Sensor Array Damper Plating Damper Plating Damper Plating System Shield Relay Coupler [NC] (27) Relay Coupler [Swarmer] (37) Relay Coupler [Grunt] (26) Relay Coupler [Brawler] (27) Relay Coupler [Sentry] (17) Relay Coupler [Sentry] (19) Relay Coupler [Sentry] (21) Relay Coupler [Hunter] (14) Relay Coupler [Hunter] (17) Remote Datajack Peak State ------------ > --- POWER ------------ Antimatter Reactor > --- PROPULSION ------- Heavy Treads > --- UTILITY ---------- High-capacity Storage Unit High-capacity Storage Unit Humpback Advanced Salvage Targeting Computer Improved Medium Armor Plating Hacking Suite System Shield > --- WEAPON ----------- Gauss Rifle Gauss Rifle > --- INVENTORY -------- Micro Nuclear Core Antimatter Reactor Advanced Treads Advanced Treads Advanced Treads Improved Cooling System Large Storage Unit Large Storage Unit High-capacity Matter Pod Experimental Sensor Array Transmission Jammer Hardened Medium Armor Plating Damper Plating Damper Plating Damper Plating Hacking Suite System Shield Relay Coupler [NC] Relay Coupler [Swarmer] Relay Coupler [Grunt] Relay Coupler [Brawler] Relay Coupler [Brawler] Relay Coupler [Duelist] Relay Coupler [Sentry] Relay Coupler [Sentry] Relay Coupler [Sentry] Relay Coupler [Hunter] Relay Coupler [Hunter] Relay Coupler [Hunter] Gauss Rifle Gauss Rifle Shock Bomb Launcher Remote Datajack Axe [Rating: 63] Favorites ----------- Power Light Nuclear Core Engine Ion Engine Power Core Light Nuclear Core Reactor Antimatter Reactor Propulsion Light Treads Treads Light Treads Leg Aluminum Leg Wheel Armored Wheel Flight Unit Improved Flight Unit Utility Humpback Device Improved Heat Sink Storage Humpback Processor Targeting Computer Hackware Hacking Suite Protection Hardened Medium Armor Plating Weapon Heavy Assault Rifle Energy Gun Beamcaster Energy Cannon Heavy Particle Cannon Ballistic Gun Heavy Assault Rifle Ballistic Cannon Light Cannon Launcher Missile Launcher Special Weapon Remote Datajack Slashing Weapon Axe Special Melee Weapon Datajack Build | -11 -10 -10 -10 -9 -8 -8 -8 -7 -7 -7 -7 ------- Run | Scr Mat Min Exi Min Mat Gar Mat Fac Was Fac Low Slots Evolved 6 | . . . . . 4 . . 2 . . . Power . | . . . . . . . . . . . . Propulsion . | . . . . . . . . . . . . Utility 6 | . . . . . 4 . . 2 . . . Weapon . | . . . . . . . . . . . . Parts Attached 165 | 3 7 6 1 2 40 30 18 11 9 32 6 Power 15 | . . . . . 4 3 2 1 2 3 . Engine 3 | . . . . . . . 1 1 . 1 . Core 8 | . . . . . 4 3 1 . . . . Reactor 4 | . . . . . . . . . 2 2 . Propulsion 39 | 2 . 2 . 1 9 9 3 1 1 8 3 Treads 31 | 2 . 2 . 1 7 7 . . 1 8 3 Leg . | . . . . . . . . . . . . Wheel 6 | . . . . . . 2 3 1 . . . Hover . | . . . . . . . . . . . . Flight 2 | . . . . . 2 . . . . . . Utility 60 | 1 3 . 1 . 15 12 7 5 3 11 2 Device 16 | 1 . . . . 6 6 . . . 1 2 Storage 16 | . 3 . 1 . 1 2 . 4 . 5 . Processor 3 | . . . . . 1 . . . 2 . . Hackware 4 | . . . . . . . 2 1 . 1 . Protection 21 | . . . . . 7 4 5 . 1 4 . Artifact . | . . . . . . . . . . . . Weapon 51 | . 4 4 . 1 12 6 6 4 3 10 1 Energy Gun 9 | . 3 2 . . 2 . 1 . . 1 . Energy Cannon 2 | . . . . . 2 . . . . . . Ballistic Gun 28 | . 1 2 . . 6 4 4 3 2 6 . Ballistic Cannon 1 | . . . . . 1 . . . . . . Launcher 4 | . . . . 1 . 2 . . . . 1 Special Weapon 1 | . . . . . . . . 1 . . . Impact Weapon . | . . . . . . . . . . . . Slashing Weapon 4 | . . . . . . . . . 1 3 . Piercing Weapon . | . . . . . . . . . . . . Special Melee Weapon 2 | . . . . . 1 . 1 . . . . Unidentified Prototypes 3 | . . . . . 2 . . 1 . . . Parts Lost 58 | . 2 3 . . 13 15 6 . . 16 3 Power 11 | . . . . . 4 2 2 . . 3 . Propulsion 8 | . . . . . 1 3 1 . . 2 1 Utility 16 | . . . . . 2 7 1 . . 6 . Weapon 23 | . 2 3 . . 6 3 2 . . 5 2 Highest Loss Streak 8 | . 1 2 . . 3 8 3 . . 8 3 Average Slot Usage (%) 88 | . 99 98 96 84 85 87 78 79 83 88 83 Engine 5 | . 14 14 14 14 . . 6 4 1 1 . Core 3 | . . . . . 7 8 2 2 . . . Reactor 1 | . . . . . . . . . 5 5 . Treads 15 | . 28 28 28 27 17 14 . . 3 8 14 Wheel 2 | . . . . . . 3 16 11 3 . . Device 3 | . . . . . 8 8 . . . . 14 Storage 19 | . 27 28 24 14 9 11 18 22 23 26 30 Processor 3 | . . . . . 8 9 . . 6 2 . Hackware 6 | . . . . . . . 10 13 15 20 15 Protection 7 | . . . . . 16 13 7 7 7 5 . Energy Gun 4 | . 23 20 14 . 5 . . . . . . Ballistic Gun 12 | . 4 6 14 14 7 17 15 14 14 13 . Launcher 1 | . . . . 13 . . . . . . . Naked Turns . | . . . . . . . . . . . . Heaviest Build 183 | 13 41 47 91 92 111 179 183 179 176 176 134 Greatest Support 70 | 40 40 40 40 40 40 40 24 28 70 70 44 Greatest Overweight (x) 53 | . 1 1 2 4 5 14 15 7 6 53 5 Average Overweight (x) 2 | . . . 1 2 2 3 7 5 3 2 2 Largest Inventory Capacity 46 | 6 16 16 24 24 24 44 44 46 40 40 36 Average Capacity 28 | 6 13 16 17 24 23 29 44 38 40 37 36 Most Carried 44 | 6 16 16 24 24 24 40 44 42 40 40 33 Average Carried 26 | 5 12 15 16 24 22 23 41 37 39 36 29 Final Capacity 44 | 6 16 16 24 24 24 44 44 40 40 36 36 Final Carried 42 | 6 16 16 24 24 22 40 42 40 40 33 28 Class Distribution -------------------- 58% | Hauler-Mutant 28% | Scavenger-Mutant 12% | Mutant Dominant Class ---------------- Mutant | -10/Materials Scavenger-Mutant | -10/Mines Scavenger-Mutant | -10/Exiles Hauler-Mutant | -9/Mines Hauler-Mutant | -8/Materials Scavenger-Mutant | -8/Garrison Hauler-Mutant | -8/Materials Hauler-Mutant | -7/Factory Hauler-Mutant | -7/Waste Hauler-Mutant | -7/Factory Hauler-Mutant | -7/Lower Caves Resources | -11 -10 -10 -10 -9 -8 -8 -8 -7 -7 -7 -7 ----------- Run | Scr Mat Min Exi Min Mat Gar Mat Fac Was Fac Low Matter Collected 5189 | 250 265 64 10 343 708 1506 524 245 208 947 119 Remotely 60 | 50 . . . . 10 . . . . . . Salvage Created 7960 | 260 412 185 . 87 1548 1760 657 82 566 2110 293 Parts 359 | 17 14 10 . 1 91 63 40 5 14 100 4 Haulers Intercepted 5 | . 1 . . . 3 . 1 . . . . Recyclers Shooed 1 | . . . . . . . . . . 1 . Parts Field Recycled . | . . . . . . . . . . . . Retrieved Matter . | . . . . . . . . . . . . Parts Self-Destructed 2 | . . . . . . . . . . . 2 Prevented . | . . . . . . . . . . . . Kills | -11 -10 -10 -10 -9 -8 -8 -8 -7 -7 -7 -7 ------- Run | Scr Mat Min Exi Min Mat Gar Mat Fac Was Fac Low Combat Hostiles Destroyed 115 | . 7 4 . 6 29 27 11 1 2 21 7 Melee 1 | . . . . . . . . . . . 1 Guns 88 | . 7 4 . . 20 22 11 1 2 21 . Cannons 8 | . . . . . 8 . . . . . . AOE 17 | . . . . 6 . 5 . . . . 6 Classes Destroyed 19 | 3 4 . . 2 3 2 . 1 2 1 1 Worker 6 | 2 . 1 . . . . . . . 3 . Builder 1 | . . . . 1 . . . . . . . Tunneler 5 | 5 . . . . . . . . . . . Hauler 5 | . 1 . . . 3 . 1 . . . . Recycler 5 | 1 . . . 1 1 . . . . 2 . Operator 7 | . 2 . . . 3 . 1 . . 1 . Watcher 6 | . 2 . . . 1 . 2 1 . . . Swarmer 8 | . . . . . 6 . . . . . 2 Grunt 62 | . 7 4 . . 17 18 7 . . 9 . Brawler 7 | . . . . . . 1 . . . 1 5 Duelist 3 | . . . . . . 1 1 . . 1 . Sentry 17 | . . . . . 4 7 2 . . 4 . Hunter 6 | . . . . . 2 . 1 . . 3 . Programmer 4 | . . . . . . . . 1 . 3 . Compactor 2 | . . . . . . . . . 2 . . Samaritan 1 | . . . . . . . . . . . 1 Assembled 6 | . . . . 6 . . . . . . . Surgeon 2 | . . . . . . . . . . 2 . Wasp 4 | . . . . . . . . . . 4 . Thug 7 | . . . . . . . . . . 7 . Savage 1 | . . . . . . . . . . 1 . Martyr 2 | . . . . . . . . . 2 . . Best Kill Streak 7 | 4 2 2 . 2 4 7 3 1 1 4 7 Combat Bots Only 7 | . 2 2 . 2 3 7 3 1 1 4 7 Max Kills in Single Turn 3 | 1 1 1 . 2 2 2 1 1 1 2 3 Gunslinging . | . . . . . . . . . . . . Exploded 3 | . . . . 2 . 2 . . . . 3 Melee 1 | . . . . . . . . . . . 1 Uniques/NPCs Destroyed . | . . . . . . . . . . . . Combat | -11 -10 -10 -10 -9 -8 -8 -8 -7 -7 -7 -7 -------- Run | Scr Mat Min Exi Min Mat Gar Mat Fac Was Fac Low Damage Taken 10859 | . 400 351 . 210 2144 1880 1538 272 80 3403 581 Core 1299 | . 49 59 . 14 202 109 165 29 3 514 155 Absorbed by Shields 21 | . . . . . 21 . . . . . . Core Remaining (%) 54 | 100 . . . 51 . . 13 . . . . Volleys Fired 612 | 20 39 20 . 26 113 192 73 9 10 104 6 Largest 2 | 2 2 2 . 2 2 2 2 2 2 2 1 Hottest 150 | 60 130 150 . 95 131 59 56 40 56 93 33 Shots Fired 1136 | 40 75 39 . 26 216 368 128 17 19 202 6 Gun 1047 | 40 75 39 . 2 170 356 128 16 19 202 . Cannon 46 | . . . . . 46 . . . . . . Launcher 42 | . . . . 24 . 12 . . . . 6 Special 1 | . . . . . . . . 1 . . . Kinetic 884 | 20 28 1 . 1 121 356 126 16 19 196 . Thermal 186 | . 44 38 . 1 95 . 2 . . 6 . Explosive 38 | . . . . 24 . 8 . . . . 6 Electromagnetic 27 | 20 3 . . . . 4 . . . . . Robot Hit Streak 42 | 6 17 11 . 4 42 42 13 15 6 20 2 Robot Miss Streak 5 | 2 3 2 . 3 4 1 3 1 2 5 1 Penetration Max 1 | . . . . . . 1 . . 1 1 . Secondary Targets 4 | . . . . . . 2 . . 1 1 . Max Gunslinging Chain 1 | . . . . . . 1 . . 1 1 . Shots Hit Robots 870 | 25 53 29 . 6 164 277 91 11 22 184 8 Core Hits 415 | 12 22 16 . 12 68 117 39 4 6 99 20 Critical Hits 16 | . 1 . . . 4 3 . 1 1 6 . Critical Kills 7 | . . . . . 2 . . 1 1 3 . Critical Parts Destroyed 8 | . 1 . . . 2 2 . . . 3 . Melee Attacks 49 | . . . . . 1 . 3 . 7 33 5 Impact . | . . . . . . . . . . . . Slashing 45 | . . . . . . . . . 7 33 5 Piercing . | . . . . . . . . . . . . Sneak Attacks 43 | . . . . . 1 . 2 . 7 30 3 Combat Hostiles . | . . . . . . . . . . . . Follow-up Attacks . | . . . . . . . . . . . . Damage Inflicted 19181 | 318 683 414 . 649 2807 3919 1303 142 1130 6754 1062 Guns 12088 | 287 683 414 . 29 2067 3231 1303 142 413 3519 . Cannons 740 | . . . . . 740 . . . . . . Explosions 2062 | 31 . . . 620 . 687 . . . 68 656 Melee 4290 | . . . . . . . . . 717 3167 406 Ramming 1 | . . . . . . 1 . . . . . Kinetic 10106 | 60 206 17 . 8 1344 3231 1275 142 413 3410 . Thermal 2549 | 31 432 397 . 21 1463 . 28 . . 177 . Explosive 1845 | . . . . 620 . 569 . . . . 656 Electromagnetic 390 | 227 45 . . . . 118 . . . . . Impact . | . . . . . . . . . . . . Slashing 4290 | . . . . . . . . . 717 3167 406 Piercing . | . . . . . . . . . . . . Highest Corruption 5 | . 2 2 2 2 . . . . . 5 5 Average Corruption 2 | . 1 2 2 2 . . . . . 2 5 Corruption Purged . | . . . . . . . . . . . . Effects 71 | . 3 15 4 11 . . . . . 25 13 Message Errors 19 | . 1 4 1 2 . . . . . 6 5 Matter Fused 10 | . . . . . . . . . . 6 4 Heat Flow Errors 8 | . . 2 2 3 . . . . . 1 . Energy Discharges 6 | . . 1 . 2 . . . . . 3 . Data Loss (minor) 19 | . 2 8 1 3 . . . . . 2 3 Data Loss (major) 2 | . . . . . . . . . . 1 1 Misfires 1 | . . . . . . . . . . 1 . Targeting Errors 5 | . . . . . . . . . . 5 . Weapon Failures 1 | . . . . 1 . . . . . . . Overload Shots . | . . . . . . . . . . . . Overflow Damage 1375 | . . . . 64 8 13 . . 284 821 185 Projectiles 8 | . . . . . 8 . . . . . . Explosions 153 | . . . . 64 . 13 . . . 53 23 Melee 1214 | . . . . . . . . . 284 768 162 Knockbacks . | . . . . . . . . . . . . Impact . | . . . . . . . . . . . . Kinetic . | . . . . . . . . . . . . Secondary . | . . . . . . . . . . . . Self-Inflicted Damage 246 | . . . . 82 . 29 . . . 87 48 Shots 8 | . . . . 3 . 3 . . . 1 1 Rammed 1 | . . . . . . 1 . . . . . Targets Rammed 1 | . . . . . . 1 . . . . . Kicked . | . . . . . . . . . . . . Crushed . | . . . . . . . . . . . . Highest Temperature 306 | 60 306 285 198 222 304 162 28 7 . 223 . Average Temperature 67 | 26 85 97 88 98 81 58 7 7 . 27 . Received Heat Transfer 3596 | . 225 117 . 49 796 900 549 15 18 783 144 Effects 3 | . 1 . . . 2 . . . . . . Energy Bleed 1 | . 1 . . . . . . . . . . Interference 2 | . . . . . 2 . . . . . . Siege Activations . | . . . . . . . . . . . . Robots Corrupted . | . . . . . . . . . . . . Combat Hostiles . | . . . . . . . . . . . . Parts Fried 4 | 2 . . . 2 . . . . . . . Impact Corruptions . | . . . . . . . . . . . . Robots Melted 1 | . . . . . 1 . . . . . . Combat Hostiles 1 | . . . . . 1 . . . . . . Parts Melted 10 | 1 3 . . . 6 . . . . . . Heat Transferred 4976 | 50 1062 817 . 37 2664 . 74 . . 272 . Parts Sabotaged . | . . . . . . . . . . . . Parts Stolen . | . . . . . . . . . . . . Parts Stripped . | . . . . . . . . . . . . Power Chain Reactions 1 | 1 . . . . . . . . . . . Missiles Intercepted . | . . . . . . . . . . . . Alert | -11 -10 -10 -10 -9 -8 -8 -8 -7 -7 -7 -7 ------- Run | Scr Mat Min Exi Min Mat Gar Mat Fac Was Fac Low Peak Influence 1533 | 40 179 159 . 47 371 1533 842 490 171 271 . Initial 746 | . 26 1 . . . 231 746 314 171 . . Average 347 | 21 74 52 . 12 164 923 732 329 73 105 . Maximum Alert Level 4 | . . . . . 1 4 3 2 . 1 . Low Security (%) 55 | 100 100 100 . 100 60 . . . 100 82 . Level 1 14 | . . . . . 39 10 . 75 . 17 . Level 2 9 | . . . . . . 20 37 24 . . . Level 3 12 | . . . . . . 32 62 . . . . Level 4 8 | . . . . . . 36 . . . . . Level 5 . | . . . . . . . . . . . . High Security . | . . . . . . . . . . . . Max Security . | . . . . . . . . . . . . Squads Dispatched 30 | . 2 1 . . 8 . 5 3 . 11 . Investigation 5 | . . . . . 2 . . . . 3 . Extermination 5 | . . . . . . . . 1 . 4 . Reinforcement 11 | . 2 . . . 3 . 3 2 . 1 . Assault 3 | . . 1 . . . . 2 . . . . Garrison 6 | . . . . . 3 . . . . 3 . Intercept . | . . . . . . . . . . . . Construction Impeded 1 | . . . . . . . . 1 . . . Haulers Reinforced . | . . . . . . . . . . . . Stealth | -11 -10 -10 -10 -9 -8 -8 -8 -7 -7 -7 -7 --------- Run | Scr Mat Min Exi Min Mat Gar Mat Fac Was Fac Low Distress Signals 7 | . . . . . 4 . 2 . . 1 . Communications Jammed . | . . . . . . . . . . . . Distress Signals . | . . . . . . . . . . . . Times Spotted 219 | . 18 15 . 17 48 31 31 10 6 34 9 Peak Tracking Total 9 | . 3 4 . 5 5 6 7 4 6 5 9 Tactical Retreats 22 | . . 1 . 5 7 5 2 . . 2 . Traps | -11 -10 -10 -10 -9 -8 -8 -8 -7 -7 -7 -7 ------- Run | Scr Mat Min Exi Min Mat Gar Mat Fac Was Fac Low Traps Triggered 13 | . 2 1 . . 1 7 . 2 . . . Indirectly 1 | . . . . . . 1 . . . . . Trap Hack Attempts . | . . . . . . . . . . . . Triggered . | . . . . . . . . . . . . Disarmed . | . . . . . . . . . . . . Reprogrammed . | . . . . . . . . . . . . Reused . | . . . . . . . . . . . . Traps Extracted . | . . . . . . . . . . . . Installed . | . . . . . . . . . . . . Triggered . | . . . . . . . . . . . . Machines | -11 -10 -10 -10 -9 -8 -8 -8 -7 -7 -7 -7 ---------- Run | Scr Mat Min Exi Min Mat Gar Mat Fac Was Fac Low Machines Disabled 12 | . . . . 1 1 5 . 3 . 2 . Max in Single Turn 1 | . . . . 1 1 1 . . . 1 . Garrison Relay 4 | . . . . . . 4 . . . . . Machines Sabotaged . | . . . . . . . . . . . . Garrisons Compromised . | . . . . . . . . . . . . Overloaded Fab Kills . | . . . . . . . . . . . . Fab Network Shutdowns . | . . . . . . . . . . . . Hacking | -11 -10 -10 -10 -9 -8 -8 -8 -7 -7 -7 -7 --------- Run | Scr Mat Min Exi Min Mat Gar Mat Fac Was Fac Low Machines Accessed 22 | . 5 2 1 . 4 . 4 1 . 5 . Terminals 11 | . 5 1 . . . . 1 . . 4 . Fabricators 1 | . . . . . . . . 1 . . . Repair Stations 5 | . . . . . 2 . 2 . . 1 . Recycling Units . | . . . . . . . . . . . . Scanalyzers 2 | . . . . . 1 . 1 . . . . Garrison Access 1 | . . . . . 1 . . . . . . Total Hacks 72 | . 13 5 1 . 11 . 19 5 . 18 . Successful 47 | . 9 3 1 . 8 . 15 3 . 8 . Failed 24 | . 3 2 . . 3 . 4 2 . 10 . Catastrophic 4 | . . 1 . . . . . . . 3 . Database Lockouts 1 | . 1 . . . . . . . . . . Manual 32 | . 9 4 . . . . 6 . . 13 . Terminals 39 | . 13 4 . . . . 8 . . 14 . Fabricators 5 | . . . . . . . . 5 . . . Repair Stations 17 | . . . . . 6 . 7 . . 4 . Recycling Units . | . . . . . . . . . . . . Scanalyzers 8 | . . . . . 4 . 4 . . . . Garrison Access 1 | . . . . . 1 . . . . . . Terminal Hacks 14 | . 5 3 1 . . . 4 . . 1 . Record 2 | . . . 1 . . . 1 . . . . Part Schematic 3 | . . 2 . . . . 1 . . . . Robot Analysis 1 | . 1 . . . . . . . . . . Prototype ID Bank 1 | . 1 . . . . . . . . . . Open Door 1 | . . 1 . . . . . . . . . Terminal Index 1 | . . . . . . . . . . 1 . Locate Traps 2 | . 1 . . . . . 1 . . . . Recall Reinforcements 1 | . 1 . . . . . . . . . . Hauler Manifests 1 | . . . . . . . 1 . . . . Zone Layout 1 | . 1 . . . . . . . . . . Fabricator Hacks 3 | . . . . . . . . 3 . . . Load Schematic 1 | . . . . . . . . 1 . . . Build 2 | . . . . . . . . 2 . . . Repair Station Hacks 15 | . . . . . 5 . 6 . . 4 . Scan Component 8 | . . . . . 3 . 3 . . 2 . Repair 7 | . . . . . 2 . 3 . . 2 . Recycling Unit Hacks . | . . . . . . . . . . . . Scanalyzer 5 | . . . . . 2 . 3 . . . . Insert Component 3 | . . . . . 1 . 2 . . . . Analyze 2 | . . . . . 1 . 1 . . . . Garrison Access Hacks 1 | . . . . . 1 . . . . . . Unlock Access 1 | . . . . . 1 . . . . . . Unauthorized Hacks 9 | . 4 . . . . . 2 . . 3 . Terminals 9 | . 4 . . . . . 2 . . 3 . Botnet 7 | . 3 . . . . . 1 . . 3 . Operators 2 | . 1 . . . . . 1 . . . . Fabricators . | . . . . . . . . . . . . Repair Stations . | . . . . . . . . . . . . Recycling Units . | . . . . . . . . . . . . Scanalyzers . | . . . . . . . . . . . . Garrison Access . | . . . . . . . . . . . . Data Cores Recovered . | . . . . . . . . . . . . Used . | . . . . . . . . . . . . Hacking Detections 19 | . 4 1 . . 4 . 4 1 . 5 . Full Trace Events 4 | . . . . . 1 . . . . 3 . Feedback Events . | . . . . . . . . . . . . Feedback Blocked . | . . . . . . . . . . . . Robot Schematics Acquired . | . . . . . . . . . . . . Robots Built . | . . . . . . . . . . . . Matter . | . . . . . . . . . . . . Time . | . . . . . . . . . . . . Total Robot Build Rating . | . . . . . . . . . . . . Part Schematics Acquired 5 | . . 2 . . 1 . 2 . . . . Parts Built 2 | . . . . . . . . 2 . . . Matter 204 | . . . . . . . . 204 . . . Time 102 | . . . . . . . . 102 . . . Total Part Build Rating 2 | . . . . . . . . 2 . . . Parts Repaired 7 | . . . . . 2 . 3 . . 2 . Time 225 | . . . . . 64 . 80 . . 81 . Parts Recycled . | . . . . . . . . . . . . Recycled Matter . | . . . . . . . . . . . . Retrieved Matter . | . . . . . . . . . . . . Retrieved Components . | . . . . . . . . . . . . Parts Scanalyzed 2 | . . . . . 1 . 1 . . . . Part Schematics Acquired 2 | . . . . . 1 . 1 . . . . Parts Damaged 1 | . . . . . . . 1 . . . . Bothacking | -11 -10 -10 -10 -9 -8 -8 -8 -7 -7 -7 -7 ------------ Run | Scr Mat Min Exi Min Mat Gar Mat Fac Was Fac Low Used RIF Installer . | . . . . . . . . . . . . Robots Hacked 3 | . . . . . . . 2 1 . . . Non-combat 3 | . . . . . . . 2 1 . . . Combat . | . . . . . . . . . . . . Robot Hacks Applied 3 | . . . . . . . 2 1 . . . parse_system 1 | . . . . . . . 1 . . . . no_distress 1 | . . . . . . . 1 . . . . find_chute 1 | . . . . . . . . 1 . . . Relay Couplers Released 16 | . . . . . . 16 . . . . . Machine Destruction 16 | . . . . . . 16 . . . . . Robots Rewired . | . . . . . . . . . . . . Allies Hacked . | . . . . . . . . . . . . Hacks Repelled . | . . . . . . . . . . . . Allies | -11 -10 -10 -10 -9 -8 -8 -8 -7 -7 -7 -7 -------- Run | Scr Mat Min Exi Min Mat Gar Mat Fac Was Fac Low Total Allies 28 | . . 4 . 2 . . . 3 19 . . Largest Group 19 | . . 3 2 2 . . . 3 19 14 . Highest-Rated Group 477 | . . 40 32 45 . . . 93 477 358 . Highest-Rated Ally 36 | . . 31 16 31 . . . 31 36 33 . Total Orders 2 | . . . 2 . . . . . . . . STAY 1 | . . . 1 . . . . . . . . FOLLOW 1 | . . . 1 . . . . . . . . Ally Attacks 232 | . . 21 . 33 . . . 55 123 . . Total Damage 5166 | . . 327 . 411 . . . 628 3800 . . Kills 32 | . . 9 . 9 . . . 8 6 . . Allies Corrupted . | . . . . . . . . . . . . Allies Melted . | . . . . . . . . . . . . Intel | -11 -10 -10 -10 -9 -8 -8 -8 -7 -7 -7 -7 ------- Run | Scr Mat Min Exi Min Mat Gar Mat Fac Was Fac Low Robot Analysis Total 1 | . 1 . . . . . . . . . . Derelict Logs Recovered 3 | . . 1 . 1 . . . . . . 1 Drone Launches . | . . . . . . . . . . . . Drone Recoveries . | . . . . . . . . . . . . Exploration | -11 -10 -10 -10 -9 -8 -8 -8 -7 -7 -7 -7 ------------- Run | Scr Mat Min Exi Min Mat Gar Mat Fac Was Fac Low Turns Passed 13646 | 154 971 1390 414 1081 1537 3055 905 750 842 2059 488 Spaces Moved 5803 | 47 499 726 213 506 491 1210 320 385 429 754 223 Core 1 | . . . . . . . . . . 1 . Treads 4641 | 40 499 726 213 506 491 972 . . 218 753 223 Legs 7 | 7 . . . . . . . . . . . Wheels 1154 | . . . . . . 238 320 385 211 . . Hover . | . . . . . . . . . . . . Flight . | . . . . . . . . . . . . Fastest Speed 120 | 120 160 160 160 200 200 160 160 140 150 180 185 Average Speed 185 | 154 164 178 183 200 207 194 161 145 178 201 204 Slowest Speed 2700 | 160 180 180 200 240 260 260 240 160 200 2700 245 Overloaded Moves . | . . . . . . . . . . . . Propulsion Burnouts . | . . . . . . . . . . . . Robots Hopped . | . . . . . . . . . . . . Cave-ins Triggered . | . . . . . . . . . . . . Exploration Rate (%) 51 | 3 78 99 54 95 33 81 25 10 95 16 34 Regions Visited 11 Branch Regions 4 Pre-discovered Areas 4 | . . 1 1 1 . . . . . . 1 Known Exits Taken 1 | . . . . . 1 . . . . . . Unknown Exits Taken 7 | 1 1 1 1 1 . . 1 . . 1 . Scrap Searched 3 | . . 2 . 1 . . . . . . . Spaces Dug 28 | . . . . 21 2 2 . . . 3 . Terrain Destroyed 400 | . . . . 310 10 22 . . . 20 38 Melee 3 | . . . . . . . . . . 3 . Projectile 17 | . . . . . 10 3 . . . 4 . AOE 380 | . . . . 310 . 19 . . . 13 38 Terrain Rammed . | . . . . . . . . . . . . Walls Destroyed . | . . . . . . . . . . . . Machines Disabled . | . . . . . . . . . . . . Actions | -11 -10 -10 -10 -9 -8 -8 -8 -7 -7 -7 -7 --------- Run | Scr Mat Min Exi Min Mat Gar Mat Fac Was Fac Low Total 7537 | 94 582 787 239 544 799 1557 580 585 482 1045 243 Wait 495 | 17 9 16 2 7 89 40 133 103 3 76 . Move 5794 | 46 498 725 212 505 491 1209 319 385 428 753 223 Hop . | . . . . . . . . . . . . Pick Up 244 | 4 17 8 19 2 39 54 19 43 8 30 1 Fast Attach 34 | 1 3 4 1 1 7 3 4 4 2 4 . Attach 72 | 2 2 . . . 18 10 10 6 4 14 6 Detach 22 | . 2 1 . . 5 2 5 2 2 2 1 Swap 63 | . 2 2 . 1 15 17 4 4 4 14 . Drop 144 | 4 10 11 5 2 21 22 10 29 14 15 1 Fire 612 | 20 39 20 . 26 113 192 73 9 10 104 6 Melee 49 | . . . . . 1 . 3 . 7 33 5 Ram . | . . . . . . . . . . . . Kick . | . . . . . . . . . . . . Crush 1 | . . . . . . 1 . . . . . Escape Stasis 6 | . . . . . . 6 . . . . . Rewire 1 | . . . . . . 1 . . . . . Trap . | . . . . . . . . . . . . Miscellaneous . | . . . . . . . . . . . . Route ------- -11/Scrapyard -10/Materials (discovered 4 exits: [*Mat x2] / *Min x2) -10/Mines (discovered 3 exits: [*Mat x2] / *Exi) -10/Exiles -9/Mines (discovered 2 exits: *Mat x2) -8/Materials (discovered 2 exits: *Fac / Gar) -8/Garrison (discovered 3 exits: *Mat x3) -8/Materials -7/Factory -7/Waste -7/Factory (discovered 3 exits: [*Fac] / [*Low x2]) -7/Lower Caves History --------- Turn | Location | Event 15 | -11/Scrapyard | Discovered new exit (range 3) 155 | -11/Scrapyard | Entered Materials 300 | -10/Materials | Build established: Mutant 434 | -10/Materials | Discovered new exit (range 8) 545 | -10/Materials | Discovered new exit (range 12) 587 | -10/Materials | Central database locked down 673 | -10/Materials | Discovered new exit (range 15) 1015 | -10/Materials | Discovered new exit (range 16) 1126 | -10/Materials | Entered Mines 1127 | -10/Mines | Met a Derelict testing a Signal Generator 1222 | -10/Mines | Learned location of Zion (-6) 1254 | -10/Mines | Met a Derelict who couldn't figure out how to use a Trap Extractor 1363 | -10/Mines | Joined a pair of Derelicts in attacking an 0b10 outpost 1440 | -10/Mines | Deemed a non-threat by the Exiles lab entrance 1440 | -10/Mines | Discovered new exit (range 5) 2038 | -10/Mines | Discovered new exit (range 6) 2045 | -10/Mines | Build established: Scavenger-Mutant 2106 | -10/Mines | Discovered new exit (range 16) 2241 | -10/Mines | Assisted by bots powering up and referring to "LRC-V3" 2516 | -10/Mines | Entered Exiles 2516 | -10/Exiles | Accompanied by 2 allies 2560 | -10/Exiles | Met 8R-AWN 2588 | -10/Exiles | Met EX-HEX 2708 | -10/Exiles | Met EX-DEC 2914 | -10/Exiles | Discovered new exit (range 10) 2930 | -10/Exiles | Entered Mines 2930 | -9/Mines | Accompanied by 2 allies 2931 | -9/Mines | Assembled infested the area 3128 | -9/Mines | Build established: Hauler-Mutant 3356 | -9/Mines | Found a damaged Exp. Sensor Array with a note attached 3360 | -9/Mines | Found Prototype Device 3373 | -9/Mines | Discovered new exit (range 10) 3959 | -9/Mines | Discovered new exit (range 14) 4011 | -9/Mines | Entered Materials 4011 | -8/Materials | Evolved 4 slots: Utility x4 4127 | -8/Materials | Lost 3 parts (1p2w) 4170 | -8/Materials | Repaired Lgt. Treads 4343 | -8/Materials | Repaired Imp. Light Armor Plating? 4402 | -8/Materials | Build established: Scavenger-Mutant 4913 | -8/Materials | Build established: Hauler-Mutant 5007 | -8/Materials | Garrison activated, responded to threat 5524 | -8/Materials | Discovered new exit (range 5) 5548 | -8/Materials | Identified exit to Garrison 5548 | -8/Materials | Entered Garrison 5593 | -8/Garrison | Triggered checkpoint 5827 | -8/Garrison | Triggered checkpoint 5926 | -8/Garrison | Destroyed 7 combat bots 5927 | -8/Garrison | Lost 3 parts (2u1w) 6112 | -8/Garrison | Triggered checkpoint 6185 | -8/Garrison | Build established: Scavenger-Mutant 6263 | -8/Garrison | Discovered new exit (range 8) 6433 | -8/Garrison | Discovered new exit (range 13) 6454 | -8/Garrison | Core integrity fell below 50% 6464 | -8/Garrison | Triggered checkpoint 6747 | -8/Garrison | Triggered checkpoint 6860 | -8/Garrison | Discovered new exit (range 10) 6884 | -8/Garrison | Triggered checkpoint 6942 | -8/Garrison | Lost 8 parts (1p2n4u1w) 7466 | -8/Garrison | Garrison Relay disabled 7766 | -8/Garrison | Garrison Relay disabled 8087 | -8/Garrison | Build established: Hauler-Mutant 8340 | -8/Garrison | Garrison Relay disabled 8523 | -8/Garrison | Garrison Relay disabled 8603 | -8/Garrison | Entered Materials 8667 | -8/Materials | Repaired Arm. Wheel 8701 | -8/Materials | Repaired Arm. Wheel 9068 | -8/Materials | Repaired Arm. Wheel 9114 | -8/Materials | Identified Exp. Sensor Array 9369 | -8/Materials | Core integrity fell below 20% 9403 | -8/Materials | First assault squad dispatched 9414 | -8/Materials | Lost 3 parts (1n1u1w) 9483 | -8/Materials | Discovered new exit (range 16) 9508 | -8/Materials | Entered Factory 9508 | -7/Factory | Evolved 2 slots: Utility x2 9718 | -7/Factory | Allied Derelicts emerged from ambush trap array 9873 | -7/Factory | Fabricated Hcp. Storage Unit (x1) 9931 | -7/Factory | Fabricated Hcp. Storage Unit (x1) 10258 | -7/Factory | Sucked down chute 10258 | -7/Factory | Entered Waste 10280 | -7/Waste | Spotted C-40 Crusher 10288 | -7/Waste | Spotted C-40 Crusher 10290 | -7/Waste | 2 allies followed down the chute 10291 | -7/Waste | Spotted C-40 Crusher 10292 | -7/Waste | Spotted C-40 Crusher 10294 | -7/Waste | Spotted C-40 Crusher 10301 | -7/Waste | Spotted C-40 Crusher 10305 | -7/Waste | Allies destroyed C-40 Crusher 10313 | -7/Waste | Found Damper Plating 10335 | -7/Waste | Destroyed C-40 Crusher 10356 | -7/Waste | Crushed by Compactor (0 parts destroyed, 1 dropped) 10386 | -7/Waste | Warlord forces began an assault 10396 | -7/Waste | Allies destroyed C-40 Crusher 10396 | -7/Waste | Destroyed C-40 Crusher 10404 | -7/Waste | Allies destroyed C-40 Crusher 10406 | -7/Waste | Allies destroyed C-40 Crusher 10545 | -7/Waste | Discovered new exit (range 12) 10761 | -7/Waste | Found Damper Plating 10802 | -7/Waste | Found Damper Plating 11100 | -7/Waste | Entered Factory 11100 | -7/Factory | Accompanied by 14 allies 12207 | -7/Factory | Discovered new exit (range 15) 12399 | -7/Factory | Build established: Scavenger-Mutant 12476 | -7/Factory | Discovered new exit (range 15) 12485 | -7/Factory | Repaired Faulty Exp. Sensor Array? 12569 | -7/Factory | Repaired Antimatter Reactor 12573 | -7/Factory | Garrison activated, responded to threat 12716 | -7/Factory | Core integrity fell below 50% 12718 | -7/Factory | Build established: Hauler-Mutant 12750 | -7/Factory | Lost 7 parts (2p1n2u2w) 13073 | -7/Factory | Discovered new exit (range 13) 13159 | -7/Factory | Entered Lower Caves 13189 | -7/Lower Caves | Lost 8 parts (1p1n3u3w) 13342 | -7/Lower Caves | Encountered a Warlord checkpoint 13617 | -7/Lower Caves | Attracted the attention of an 0b10 outpost 13621 | -7/Lower Caves | Core integrity fell below 20% 13647 | -7/Lower Caves | Destroyed by G-47 Trooper with Particle Gun Last Messages --------------- 13625_ B-48 Gladiator destroyed. 13625_ Penetrated by Slug. 13629_ The unstable cave ceiling collapses. 13629_ B-48 Gladiator destroyed. 13631_ Penetrated by Slug. 13631_ S-27 Virus destroyed. 13631_ Rocket Launcher destroyed. 13632_ Lgt. Treads fries itself beyond repair. 13633_ Penetrated by Slug. 13633_ Adv. Treads destroyed. 13636_ The unstable cave ceiling collapses. 13636_ B-48 Gladiator destroyed. 13636_ Slug penetrates Wall. 13639_ Penetrated by Slug. 13639_ Acquired 36 matter. 13639_ Axe destroyed. 13640_ Rnf. Deuterium Engine fries itself beyond repair. 13642_ The unstable cave ceiling collapses. 13645_ Slug penetrates Wall. 13646_ The unstable cave ceiling collapses. Map ----- +----------------------------------------------------+ | ??????????????????????????????????????# ??????## | | ?????????????????????????????????????## ?????## | | ????????????????????????????####????## ??### | | ????????????????????????????# #???## ?## | | ????????##?????????????????## #???# ## | | ???????## #???????????????## #???? | | ???????# ????????#####?## #?????? | | ???????# #??????## ### ##???? | | ???????# ##???## #????? | | ???????# #### #?????????# | | ???????# #??????????# | | ????????# ####???????## | | ???????## ## ## ####????## | | ??????## #### ###### | | ??????# ##??## ## ## | | ??????### ###???# ## | | ???????## # #### ## | | ???????# ## ######## #??## ### | | ??????#% ### #""Yb""# #???## #?# | | % ### ##?# #" "# #????# #?# | | #??## #?## #" "# #??? #?#### | | #### ????## ### " g "# ### #????# | | ?????# ??????# % #### ##????? | | ?????## ???????# #?# #??###? | | ??????#????????# # % Y #?# #??# # | | ???????????????# @ #? #??# | | ???????????????# #??#######??## | | ???????????????## % % #####??????######### | | ????????????????# ####????????## ##?# | | ????????????????# ##?????###### ### | | ???????????????# ## ##??????# | | ??????????????#; ## # #??????# ## | | ??????????????##### ######??????# ####### | | ??????????????????## #???????????########?????## | | ???????????????????####?????????????????????????## | | ?????????????????????????????????????????????????? | | ?????????????????????????????????????????????????? | | ?????????????????????????????????????????????????? | | ?????????????????????????????????????????????????? | | ?????????????????????????????????????????????????? | | ?????????????????????????????????????????????????? | | ?????????????????????????????????????????????????? | | ?????????????????????????????????????????????????? | | ?????????????????????????????????????????????????? | | ?????????????????????????????????????????????????? | | ?????????????????????????????????????????????????? | | ?????????????????????????????????????????????????? | | ?????????????????????????????????????????????????? | | ?????????????????????????????????????????????????? | | ?????????????????????????????????????????????????? | +----------------------------------------------------+ Best States ------------- Heat Dissipation 61 Energy Generation 21 Energy Capacity 325 Matter Stores 300 Matter Capacity 300 Sight Range 16 Terrain Scan Density 10 Armor Coverage 600 Evasion (%) 40 Targeting Accuracy 5 Recoil Reduction 2 Particle Charging 15 Salvage Targeting 3 Offensive Hacking 20 Defensive Hacking 10 Item Schematics ----------------- Hcp. Storage Unit | -10/Mines | Hacked Lrg. Storage Unit | -10/Mines | Hacked Hcp. Matter Pod | -8/Materials | Scanalyzed Hacking Suite | -8/Materials | Hacked Exp. Sensor Array | -8/Materials | Scanalyzed Robot Schematics ------------------ None Fabricated ------------ Hcp. Storage Unit | x1 | -7/Factory Hcp. Storage Unit | x1 | -7/Factory Alien Tech Used ----------------- None Achievements -------------- None Challenges ------------ None Game ------ Seed SurgeTiamatBooster Manual? 0 Play Time 01:48:25 Cumulative 42.7 hours Start 2020.10.24 @ 06:05:17 End 2020.10.24 @ 07:58:04 Sessions 1 Manual Loads 0 Difficulty Rogue Special Mode None Game No. 38 Rogue 38 Adventurer 0 Explorer 0 Win Type - Total 0 Types 0/0/0/0/0/0/0/0/0 Lore% 39 Gallery% 41 Achievement% 48 Wizard Run 0 Options --------- ASCII 0 Keyboard 1 Movement Numpad Keybinds 0 Fullscreen 1 Font 12/Terminus Map View 83x54 Tactical HUD 1 Map Filters NONE Filters NONE Steam 1 RUN: ea720846-5907-4401-895e-727ddfca5ca0